bitfinex/quotes_BTCUSD_20251015
["timestamp","ask_amount","ask_price","bid_price","bid_amount"]
[1760552107733,0.17988846,111180.0,111170.0,0.27960869]
[1760552108342,0.17988846,111180.0,111170.0,0.09069012]
[1760552108471,0.17988846,111180.0,111170.0,0.10868058]
[1760552108674,0.17988846,111180.0,111170.0,0.09069012]
[1760552109117,0.17988846,111180.0,111170.0,0.08969012]
[1760552109329,0.17988846,111180.0,111170.0,0.09069012]
[1760552109538,0.17988846,111180.0,111170.0,0.09169012]
[1760552109700,0.17988846,111180.0,111170.0,0.10968058]
[1760552110071,0.17988846,111180.0,111170.0,0.28958523]
[1760552110325,0.17988846,111180.0,111170.0,0.09169012]
[1760552110538,0.17988846,111180.0,111170.0,0.10968058]
[1760552110734,0.17988846,111180.0,111170.0,0.28958523]
[1760552110941,0.17988846,111180.0,111170.0,0.27159477]
[1760552111142,0.17988846,111180.0,111170.0,0.09169012]
[1760552111316,0.17988846,111180.0,111170.0,0.10968058]
[1760552111542,0.17988846,111180.0,111170.0,0.28958523]
[1760552111700,0.17988846,111180.0,111170.0,0.68886874]
[1760552112109,0.1797968,111180.0,111170.0,0.71590983]
[1760552112311,0.17988846,111180.0,111170.0,0.29863586]
[1760552112513,0.26524391,111190.0,111170.0,0.29863586]
[1760552113450,0.26524391,111190.0,111170.0,0.29763586]
[1760552113866,0.26524391,111190.0,111170.0,0.71490983]
[1760552114088,0.26524391,111190.0,111180.0,0.41727397]
[1760552114298,0.26524391,111190.0,111180.0,0.08969012]
[1760552114515,0.17988846,111180.0,111170.0,0.02804109]
[1760552114725,0.17988846,111180.0,111170.0,0.09069012]
[1760552115137,0.17988846,111180.0,111170.0,0.08969012]
[1760552115761,0.17988846,111180.0,111170.0,0.09069012]
[1760552116213,0.17988846,111180.0,111170.0,0.09169012]
[1760552116674,0.26612909,111180.0,111170.0,0.09169012]
[1760552117346,0.26612909,111180.0,111170.0,0.002]
[1760552119850,0.17988846,111180.0,111170.0,0.002]
[1760552121384,0.17988846,111180.0,111170.0,0.50896409]
[1760552121788,0.17988846,111180.0,111170.0,0.09169012]
[1760552123464,0.17988846,111180.0,111170.0,0.50896409]
[1760552123908,0.26524391,111190.0,111170.0,0.68886874]
[1760552124025,0.26524391,111190.0,111180.0,0.41727397]
[1760552124234,0.17988846,111180.0,111170.0,0.68886874]
[1760552124841,0.17988846,111180.0,111170.0,0.68686874]
[1760552125938,0.17988846,111180.0,111170.0,0.68886874]
[1760552126344,0.26524391,111190.0,111170.0,0.68886874]
[1760552126509,0.26524457,111190.0,111180.0,0.68685255]
[1760552126709,0.08537162,111190.0,111180.0,1.10412652]
[1760552127500,0.08537162,111190.0,111180.0,1.13116288]
[1760552127897,0.08537162,111190.0,111180.0,1.24520288]
[1760552128304,0.08537162,111190.0,111180.0,1.13116288]
[1760552128762,0.08537162,111190.0,111180.0,1.58420288]
[1760552128998,0.08537162,111190.0,111180.0,1.50734516]
[1760552129221,0.08537162,111190.0,111180.0,1.50834516]
[1760552129468,0.08537162,111190.0,111180.0,1.62138516]
[1760552129690,0.08537162,111190.0,111180.0,1.50834516]
[1760552130123,0.08537162,111190.0,111180.0,1.62138516]
[1760552130551,0.08537162,111190.0,111180.0,1.62038516]
[1760552130756,0.08537162,111190.0,111180.0,1.50834516]
[1760552131226,0.08537162,111190.0,111180.0,1.50734516]
[1760552131431,0.08537162,111190.0,111180.0,1.92354628]
[1760552131644,0.08537162,111190.0,111180.0,2.03758628]
[1760552131840,0.08537162,111190.0,111180.0,1.92454628]
[1760552132093,0.08537162,111190.0,111180.0,2.03958628]
[1760552132311,0.08537162,111190.0,111180.0,3.81098575]
[1760552132582,0.05836591,111190.0,111180.0,3.81098575]
[1760552132815,0.0313602,111190.0,111180.0,3.69794575]
[1760552133026,0.00435449,111190.0,111180.0,3.69794575]
[1760552133247,0.26060764,111240.0,111220.0,0.51981099]
[1760552133460,0.26060764,111240.0,111230.0,0.50627314]
[1760552133673,0.18885554,111240.0,111230.0,0.50627314]
[1760552134525,0.18890548,111240.0,111230.0,0.50627314]
[1760552134950,0.17984138,111240.0,111230.0,0.50627314]
[1760552135367,0.17984138,111240.0,111230.0,0.51514512]
[1760552136107,0.17984138,111240.0,111230.0,0.69495272]
[1760552136306,0.17984138,111240.0,111230.0,0.51514512]
[1760552136520,0.17984138,111240.0,111230.0,0.62814512]
[1760552137509,0.17984138,111240.0,111230.0,0.62914512]
[1760552138260,0.17984138,111240.0,111230.0,0.2125621]
[1760552138509,0.17984138,111240.0,111230.0,0.51614512]
[1760552139986,0.17984138,111240.0,111230.0,0.46479595]
[1760552140190,0.17984138,111240.0,111230.0,0.45592397]
[1760552140830,0.17984138,111240.0,111230.0,0.03934095]
[1760552142506,0.17984138,111240.0,111230.0,0.45592397]
[1760552143859,0.17984138,111240.0,111230.0,0.63573157]
[1760552144291,4.994e-05,111240.0,111230.0,0.63573157]
[1760552144920,0.17984138,111240.0,111230.0,0.21914855]
[1760552145120,0.17984138,111240.0,111230.0,0.45592397]
[1760552145320,0.17984138,111240.0,111230.0,0.03934095]
[1760552145479,0.17984138,111240.0,111230.0,0.45592397]
[1760552146360,0.17984138,111240.0,111230.0,0.03934095]
[1760552147204,0.17984138,111240.0,111230.0,0.45592397]
[1760552147407,0.17984138,111240.0,111230.0,0.63573157]
[1760552148614,0.17984138,111240.0,111230.0,0.45592397]
[1760552148865,0.17984138,111240.0,111230.0,0.21914855]
[1760552149065,0.17984138,111240.0,111230.0,0.63573157]
[1760552149378,0.17984138,111240.0,111230.0,0.45592397]
[1760552151570,0.19660982,111240.0,111230.0,0.001]
[1760552152098,0.17984138,111240.0,111230.0,0.001]
[1760552152296,0.17984138,111240.0,111230.0,0.41758302]
[1760552152600,0.19661807,111240.0,111230.0,0.41758302]
[1760552153229,0.19661804,111240.0,111230.0,0.41758302]
[1760552154904,0.19661804,111240.0,111230.0,0.68708074]
[1760552155303,4.994e-05,111240.0,111230.0,1.10366376]
[1760552155982,4.994e-05,111240.0,111230.0,1.44366376]
[1760552156194,0.1500521,111250.0,111240.0,0.51979144]
[1760552156354,0.1500521,111250.0,111240.0,1.4426476]
[1760552156785,0.1500521,111250.0,111240.0,1.5556076]
[1760552156956,0.18875156,111260.0,111240.0,1.4426476]
[1760552157191,0.20562095,111260.0,111250.0,0.41658302]
[1760552158654,0.17977528,111250.0,111240.0,0.54265012]
[1760552158894,0.19659469,111250.0,111240.0,1.26285616]
[1760552159463,0.20558345,111250.0,111220.0,0.03607332]
[1760552159662,0.17980582,111240.0,111230.0,0.84627314]
[1760552159926,0.19662523,111240.0,111230.0,1.02608074]
[1760552161087,0.17980582,111240.0,111230.0,1.02608074]
[1760552161493,0.17980582,111240.0,111230.0,0.84627314]
[1760552161701,0.17980582,111240.0,111230.0,1.02608074]
[1760552162418,0.17980582,111240.0,111230.0,1.02708074]
[1760552163835,0.17977528,111250.0,111240.0,0.17979144]
[1760552164034,0.19662162,111250.0,111240.0,0.68606458]
[1760552164207,0.17977528,111250.0,111240.0,0.68606458]
[1760552164530,0.19662099,111250.0,111240.0,0.08969012]
[1760552164822,0.19662099,111250.0,111240.0,0.50627314]
[1760552165479,0.19662099,111250.0,111240.0,0.68606458]
[1760552165710,0.17977528,111250.0,111240.0,1.1026476]
[1760552166381,4.998e-05,111260.0,111240.0,1.4426476]
[1760552166599,4.998e-05,111260.0,111250.0,0.70402594]
[1760552166600,0.1798091,111260.0,111250.0,0.70402594]
[1760552166835,0.1798091,111260.0,111250.0,0.79900842]
[1760552167056,0.1798091,111260.0,111250.0,0.68604842]
[1760552167296,4.998e-05,111260.0,111250.0,1.13900842]
[1760552167518,4.998e-05,111260.0,111250.0,1.55559144]
[1760552167961,4.998e-05,111260.0,111250.0,1.44263144]
[1760552168456,4.998e-05,111260.0,111250.0,1.13900842]
[1760552168640,4.998e-05,111260.0,111250.0,0.7224254]
[1760552168954,4.998e-05,111260.0,111250.0,1.13900842]
[1760552169198,4.998e-05,111260.0,111250.0,1.02604842]
[1760552169418,4.998e-05,111260.0,111250.0,0.6094654]
[1760552169629,4.998e-05,111260.0,111250.0,1.02604842]
[1760552169898,0.1798091,111260.0,111250.0,1.13900842]
[1760552170330,4.998e-05,111260.0,111250.0,1.13900842]
[1760552170610,4.998e-05,111260.0,111250.0,1.02604842]
[1760552170850,0.1798091,111260.0,111250.0,0.84627314]
[1760552171044,0.1798091,111260.0,111250.0,1.02604842]
[1760552171256,0.1798091,111260.0,111250.0,1.13900842]
[1760552171464,0.1798091,111260.0,111250.0,1.02604842]
[1760552171889,4.998e-05,111260.0,111250.0,1.13900842]
[1760552172097,4.998e-05,111260.0,111250.0,1.02604842]
[1760552172303,0.1798091,111260.0,111250.0,1.13900842]
[1760552172510,0.1798091,111260.0,111250.0,1.02604842]
[1760552172934,4.998e-05,111260.0,111250.0,1.13900842]
[1760552173143,4.998e-05,111260.0,111250.0,1.02604842]
[1760552173352,4.998e-05,111260.0,111250.0,1.14000842]
[1760552173556,4.998e-05,111260.0,111250.0,1.02704842]
[1760552173774,4.998e-05,111260.0,111250.0,1.14000842]
[1760552173986,4.998e-05,111260.0,111250.0,1.55659144]
[1760552174191,4.998e-05,111260.0,111250.0,1.44363144]
[1760552174400,4.998e-05,111260.0,111250.0,1.55655144]
[1760552174679,4.998e-05,111260.0,111250.0,1.13996842]
[1760552174962,4.998e-05,111260.0,111250.0,1.02704842]
[1760552175194,0.1798091,111260.0,111250.0,0.6104654]
[1760552175410,0.1798091,111260.0,111250.0,1.02704842]
[1760552175628,0.1798091,111260.0,111250.0,1.13996842]
[1760552175849,0.1798091,111260.0,111250.0,1.02704842]
[1760552176071,0.1798091,111260.0,111250.0,1.13996842]
[1760552176306,0.1798091,111260.0,111250.0,1.02704842]
[1760552176529,0.1798091,111260.0,111250.0,1.13996842]
[1760552176735,0.1798091,111260.0,111250.0,1.02704842]
[1760552176944,0.1798091,111260.0,111250.0,1.13996842]
[1760552177163,0.1798091,111260.0,111250.0,1.02704842]
[1760552177375,4.998e-05,111260.0,111250.0,1.13996842]
[1760552177818,4.998e-05,111260.0,111250.0,1.44363144]
[1760552178290,4.998e-05,111260.0,111250.0,1.55655144]
[1760552178469,4.998e-05,111260.0,111250.0,1.59273372]
[1760552178767,4.998e-05,111260.0,111250.0,1.47981372]
[1760552179231,4.998e-05,111260.0,111250.0,1.59273372]
[1760552179465,4.998e-05,111260.0,111250.0,1.47981372]
[1760552180269,4.998e-05,111260.0,111250.0,1.59273372]
[1760552181032,4.998e-05,111260.0,111250.0,1.47981372]
[1760552181247,4.998e-05,111260.0,111250.0,1.59273372]
[1760552181433,4.998e-05,111260.0,111250.0,2.00931674]
[1760552181594,4.998e-05,111260.0,111250.0,1.5068298]
[1760552182452,4.998e-05,111260.0,111250.0,1.6187498]
[1760552182891,4.998e-05,111260.0,111250.0,1.5058298]
[1760552183035,4.998e-05,111260.0,111250.0,1.6187498]
[1760552183235,4.998e-05,111260.0,111250.0,1.6197498]
[1760552183888,4.998e-05,111260.0,111250.0,1.6207498]
[1760552184406,4.998e-05,111260.0,111250.0,1.5078298]
[1760552184554,4.998e-05,111260.0,111250.0,1.6207498]
[1760552185544,4.998e-05,111260.0,111250.0,1.5078298]
[1760552185798,4.998e-05,111260.0,111250.0,1.6207498]
[1760552186414,4.998e-05,111260.0,111250.0,1.5078298]
[1760552186612,4.998e-05,111260.0,111250.0,1.6207498]
[1760552188106,4.998e-05,111260.0,111250.0,1.20416678]
[1760552188467,4.998e-05,111260.0,111250.0,1.09124678]
[1760552188666,4.998e-05,111260.0,111250.0,1.5078298]
[1760552188894,4.998e-05,111260.0,111250.0,1.6207498]
[1760552189520,4.998e-05,111260.0,111250.0,1.5078298]
[1760552189929,4.998e-05,111260.0,111250.0,2.03733282]
[1760552190146,4.998e-05,111260.0,111250.0,1.92441282]
[1760552190356,4.998e-05,111260.0,111250.0,2.03733282]
[1760552190558,4.998e-05,111260.0,111250.0,1.92441282]
[1760552190759,4.998e-05,111260.0,111250.0,2.03733282]
[1760552191399,4.998e-05,111260.0,111250.0,1.61873786]
[1760552191601,4.998e-05,111260.0,111250.0,1.50781786]
[1760552192015,4.998e-05,111260.0,111250.0,1.62073786]
[1760552192444,4.998e-05,111260.0,111250.0,1.61973786]
[1760552192650,4.998e-05,111260.0,111250.0,1.62173786]
[1760552192855,4.998e-05,111260.0,111250.0,1.09274081]
[1760552193069,4.998e-05,111260.0,111250.0,1.20566081]
[1760552193276,4.998e-05,111260.0,111250.0,1.09274081]
[1760552193498,4.998e-05,111260.0,111250.0,1.40831497]
[1760552194058,4.998e-05,111260.0,111250.0,1.52123497]
[1760552194370,4.998e-05,111260.0,111250.0,1.40831497]
[1760552194581,4.998e-05,111260.0,111250.0,1.52123497]
[1760552194887,4.998e-05,111260.0,111250.0,1.40831497]
[1760552195509,4.998e-05,111260.0,111250.0,1.52123497]
[1760552195735,4.998e-05,111260.0,111250.0,1.40831497]
[1760552195940,4.998e-05,111260.0,111250.0,1.52123497]
[1760552196283,4.998e-05,111260.0,111250.0,1.40831497]
[1760552196689,4.998e-05,111260.0,111250.0,1.52123497]
[1760552196887,4.998e-05,111260.0,111250.0,1.40831497]
[1760552197107,4.998e-05,111260.0,111250.0,1.52123497]
[1760552197541,4.998e-05,111260.0,111250.0,1.40831497]
[1760552198572,4.998e-05,111260.0,111250.0,1.52123497]
[1760552198774,4.998e-05,111260.0,111250.0,1.40831497]
[1760552199160,4.998e-05,111260.0,111250.0,1.51199295]
[1760552200137,4.998e-05,111260.0,111250.0,1.39907295]
[1760552200359,4.998e-05,111260.0,111250.0,1.51199295]
[1760552200698,4.998e-05,111260.0,111250.0,1.39907295]
[1760552201134,4.998e-05,111260.0,111250.0,1.51199295]
[1760552201341,4.998e-05,111260.0,111250.0,1.39907295]
[1760552201769,4.998e-05,111260.0,111250.0,1.51199295]
[1760552202171,4.998e-05,111260.0,111250.0,1.51195295]
[1760552202399,4.998e-05,111260.0,111250.0,1.39907295]
[1760552202552,4.998e-05,111260.0,111250.0,1.51195295]
[1760552203303,4.998e-05,111260.0,111250.0,1.39907295]
[1760552204504,4.998e-05,111260.0,111250.0,1.51195295]
[1760552204726,4.998e-05,111260.0,111250.0,1.39907295]
[1760552204940,4.998e-05,111260.0,111250.0,1.51195295]
[1760552205267,4.998e-05,111260.0,111250.0,1.39907295]
[1760552205507,4.998e-05,111260.0,111250.0,1.51195295]
[1760552206287,4.998e-05,111260.0,111250.0,1.39907295]
[1760552207141,4.998e-05,111260.0,111250.0,1.51195295]
[1760552207338,4.998e-05,111260.0,111250.0,1.39907295]
[1760552207544,4.998e-05,111260.0,111250.0,1.51195295]
[1760552207882,4.998e-05,111260.0,111250.0,1.39907295]
[1760552208079,4.998e-05,111260.0,111250.0,1.51195295]
[1760552208846,4.998e-05,111260.0,111250.0,1.39907295]
[1760552209287,4.998e-05,111260.0,111250.0,1.51195295]
[1760552209524,4.998e-05,111260.0,111250.0,1.39907295]
[1760552209908,4.998e-05,111260.0,111250.0,1.51195295]
[1760552210110,4.998e-05,111260.0,111250.0,1.39907295]
[1760552212451,4.998e-05,111260.0,111250.0,1.51195295]
[1760552212650,4.998e-05,111260.0,111250.0,1.39907295]
[1760552213226,4.998e-05,111260.0,111250.0,1.51195295]
[1760552213434,4.998e-05,111260.0,111250.0,1.08354844]
[1760552213635,4.998e-05,111260.0,111250.0,1.19642844]
[1760552213871,4.998e-05,111260.0,111250.0,1.08354844]
[1760552214702,4.998e-05,111260.0,111250.0,1.19642844]
[1760552214912,4.998e-05,111260.0,111250.0,1.04736616]
[1760552215698,4.998e-05,111260.0,111250.0,1.16024616]
[1760552216142,4.998e-05,111260.0,111250.0,1.04736616]
[1760552216514,4.998e-05,111260.0,111250.0,1.16024616]
[1760552216734,4.998e-05,111260.0,111250.0,1.04736616]
[1760552216982,4.998e-05,111260.0,111250.0,1.04536616]
[1760552217198,4.998e-05,111260.0,111250.0,1.15824616]
[1760552217416,4.998e-05,111260.0,111250.0,1.04436616]
[1760552217633,4.998e-05,111260.0,111250.0,1.15724616]
[1760552217851,4.998e-05,111260.0,111250.0,0.74011946]
[1760552218061,4.998e-05,111260.0,111250.0,1.04436616]
[1760552218291,4.998e-05,111260.0,111250.0,1.04536616]
[1760552218529,4.998e-05,111260.0,111250.0,1.15724616]
[1760552218722,4.998e-05,111260.0,111250.0,1.15824616]
[1760552218947,4.998e-05,111260.0,111250.0,1.04536616]
[1760552219413,4.998e-05,111260.0,111250.0,1.15824616]
[1760552219627,4.998e-05,111260.0,111250.0,1.04536616]
[1760552220304,4.998e-05,111260.0,111250.0,1.15824616]
[1760552220792,4.998e-05,111260.0,111250.0,0.74211946]
[1760552221000,4.998e-05,111260.0,111250.0,1.04536616]
[1760552221214,4.998e-05,111260.0,111250.0,0.62923946]
[1760552221428,4.998e-05,111260.0,111250.0,1.15824616]
[1760552221889,4.998e-05,111260.0,111250.0,1.04636616]
[1760552222323,4.998e-05,111260.0,111250.0,1.15924616]
[1760552222779,4.998e-05,111260.0,111250.0,1.04636616]
[1760552223222,4.998e-05,111260.0,111250.0,1.15924616]
[1760552223679,4.998e-05,111260.0,111250.0,1.04636616]
[1760552224106,4.998e-05,111260.0,111250.0,1.15924616]
[1760552224568,4.998e-05,111260.0,111250.0,1.04636616]
[1760552224785,4.998e-05,111260.0,111250.0,1.15924616]
[1760552225223,4.998e-05,111260.0,111250.0,1.04636616]
[1760552225635,4.998e-05,111260.0,111250.0,1.15924616]
[1760552226051,4.998e-05,111260.0,111250.0,1.04636616]
[1760552226939,4.998e-05,111260.0,111250.0,1.15924616]
[1760552227244,4.998e-05,111260.0,111250.0,1.04636616]
[1760552227454,4.998e-05,111260.0,111250.0,1.15924616]
[1760552227673,4.998e-05,111260.0,111250.0,1.04636616]
[1760552228088,4.998e-05,111260.0,111250.0,1.15924616]
[1760552228300,4.998e-05,111260.0,111250.0,1.04636616]
[1760552228509,4.998e-05,111260.0,111250.0,1.04536616]
[1760552228954,4.998e-05,111260.0,111250.0,0.63023946]
[1760552229173,4.998e-05,111260.0,111250.0,1.15824616]
[1760552229384,4.998e-05,111260.0,111250.0,1.04536616]
[1760552229597,4.998e-05,111260.0,111250.0,1.16024616]
[1760552230254,4.998e-05,111260.0,111250.0,1.04736616]
[1760552230458,4.998e-05,111260.0,111250.0,1.19642844]
[1760552230683,4.998e-05,111260.0,111250.0,1.08354844]
[1760552230946,4.998e-05,111260.0,111250.0,1.19642844]
[1760552231638,4.998e-05,111260.0,111250.0,1.08354844]
[1760552232477,4.998e-05,111260.0,111250.0,1.04736616]
[1760552232687,4.998e-05,111260.0,111250.0,1.16024616]
[1760552233523,4.998e-05,111260.0,111250.0,1.04736616]
[1760552233729,4.998e-05,111260.0,111250.0,1.16024616]
[1760552234133,4.998e-05,111260.0,111250.0,1.04736616]
[1760552234336,4.998e-05,111260.0,111250.0,1.16024616]
[1760552234742,4.998e-05,111260.0,111250.0,1.04736616]
[1760552237167,0.1798091,111260.0,111250.0,0.45146418]
[1760552237299,0.1798091,111260.0,111250.0,0.0844481]
[1760552237978,0.1798091,111260.0,111250.0,0.26422338]
[1760552238162,0.1798091,111260.0,111250.0,0.26122338]
[1760552238423,0.1798091,111260.0,111250.0,0.67735008]
[1760552238592,0.1798091,111260.0,111250.0,0.67935008]
[1760552238750,4.998e-05,111260.0,111250.0,0.67935008]
[1760552238949,0.1798091,111260.0,111250.0,0.67935008]
[1760552241137,0.1798091,111260.0,111250.0,0.4995748]
[1760552241342,0.1798091,111260.0,111250.0,0.67935008]
[1760552243921,0.1798091,111260.0,111250.0,0.26322338]
[1760552244128,0.1798091,111260.0,111250.0,0.67935008]
[1760552245453,0.1798091,111260.0,111250.0,0.0834481]
[1760552245658,0.21582306,111260.0,111250.0,0.003]
[1760552246791,0.21582306,111260.0,111250.0,0.002]
[1760552247152,0.21582306,111260.0,111250.0,0.001]
[1760552247555,0.21582306,111260.0,111250.0,0.002]
[1760552247881,0.21582306,111260.0,111250.0,0.001]
[1760552248054,0.21582306,111260.0,111250.0,0.4171267]
[1760552248658,0.1798091,111260.0,111250.0,0.4171267]
[1760552249800,0.1798091,111260.0,111250.0,0.59690198]
[1760552250058,4.998e-05,111260.0,111250.0,0.6865921]
[1760552250699,4.998e-05,111260.0,111250.0,1.0265921]
[1760552251114,4.998e-05,111260.0,111250.0,1.1405121]
[1760552251506,4.998e-05,111260.0,111250.0,1.4437188]
[1760552251686,4.998e-05,111260.0,111250.0,1.16653156]
[1760552251854,4.998e-05,111260.0,111250.0,1.16753156]
[1760552252070,4.998e-05,111260.0,111250.0,1.05461156]
[1760552253122,4.998e-05,111260.0,111250.0,1.16853156]
[1760552253345,4.998e-05,111260.0,111250.0,1.58495126]
[1760552253592,0.1798091,111260.0,111250.0,0.7253854]
[1760552253791,4.998e-05,111260.0,111250.0,1.4450118]
[1760552254379,0.1798091,111260.0,111250.0,1.1416586]
[1760552254761,0.1798091,111260.0,111250.0,0.84896332]
[1760552255388,0.1798091,111260.0,111250.0,0.6124654]
[1760552255824,4.998e-05,111260.0,111250.0,1.08559715]
[1760552256207,0.1798091,111260.0,111250.0,1.08559715]
[1760552256782,0.1798091,111260.0,111250.0,0.6124654]
[1760552259694,4.998e-05,111260.0,111250.0,1.08559715]
[1760552260296,0.1798091,111260.0,111250.0,1.08559715]
[1760552260748,4.998e-05,111260.0,111250.0,1.08559715]
[1760552261284,4.998e-05,111260.0,111250.0,1.19851715]
[1760552261489,4.998e-05,111260.0,111250.0,1.08559715]
[1760552261649,4.998e-05,111260.0,111250.0,1.19851715]
[1760552261846,0.1798091,111260.0,111250.0,1.08559715]
[1760552262071,0.1798091,111260.0,111250.0,1.19851715]
[1760552262420,0.1798091,111260.0,111250.0,1.08559715]
[1760552262648,0.1798091,111260.0,111250.0,1.19851715]
[1760552262874,0.1798091,111260.0,111250.0,1.08559715]
[1760552263315,4.998e-05,111260.0,111250.0,1.19851715]
[1760552263543,0.1798091,111260.0,111250.0,1.08559715]
[1760552263987,4.998e-05,111260.0,111250.0,1.19851715]
[1760552264268,4.998e-05,111260.0,111250.0,1.08559715]
[1760552264984,4.998e-05,111260.0,111250.0,1.19851715]
[1760552265461,4.998e-05,111260.0,111250.0,1.08559715]
[1760552265686,4.998e-05,111260.0,111250.0,0.6124654]
[1760552265687,0.1798091,111260.0,111250.0,0.6124654]
[1760552266175,0.1798091,111260.0,111250.0,0.7253854]
[1760552266388,0.1798091,111260.0,111250.0,1.19851715]
[1760552266596,4.998e-05,111260.0,111250.0,1.19851715]
[1760552267501,4.998e-05,111260.0,111250.0,1.08559715]
[1760552268338,4.998e-05,111260.0,111250.0,1.11261627]
[1760552268486,4.998e-05,111260.0,111250.0,1.22549627]
[1760552268841,4.998e-05,111260.0,111250.0,1.22449627]
[1760552269079,4.998e-05,111260.0,111250.0,1.22349627]
[1760552269295,4.998e-05,111260.0,111250.0,1.11361627]
[1760552269515,4.998e-05,111260.0,111250.0,1.22649627]
[1760552270221,4.998e-05,111260.0,111250.0,1.19947715]
[1760552270426,4.998e-05,111260.0,111250.0,1.08659715]
[1760552270661,4.998e-05,111260.0,111250.0,1.19947715]
[1760552270998,4.998e-05,111260.0,111250.0,1.08659715]
[1760552271195,4.998e-05,111260.0,111250.0,1.19947715]
[1760552272863,0.1798091,111260.0,111250.0,1.19847715]
[1760552273327,4.998e-05,111260.0,111250.0,1.19847715]
[1760552273748,0.1798091,111260.0,111250.0,1.19847715]
[1760552273976,0.1798091,111260.0,111250.0,1.01870187]
[1760552274182,0.1798091,111260.0,111250.0,0.6124654]
[1760552275123,0.1798091,111260.0,111250.0,0.7253454]
[1760552275336,0.1798091,111260.0,111250.0,1.14167208]
[1760552276305,4.998e-05,111260.0,111250.0,1.02879208]
[1760552276506,4.998e-05,111260.0,111250.0,1.14167208]
[1760552276709,4.998e-05,111260.0,111250.0,1.02879208]
[1760552276909,4.998e-05,111260.0,111250.0,1.14167208]
[1760552277271,0.1798091,111260.0,111250.0,1.14167208]
[1760552277467,0.1798091,111260.0,111250.0,1.14267208]
[1760552277682,4.998e-05,111260.0,111250.0,1.14267208]
[1760552277918,4.998e-05,111260.0,111250.0,1.02979208]
[1760552278120,4.998e-05,111260.0,111250.0,1.14267208]
[1760552278755,4.998e-05,111260.0,111250.0,1.55899876]
[1760552280102,4.998e-05,111260.0,111250.0,1.44611876]
[1760552280344,4.998e-05,111260.0,111250.0,1.55899876]
[1760552280940,4.998e-05,111260.0,111250.0,1.44611876]
[1760552281140,4.998e-05,111260.0,111250.0,1.55899876]
[1760552281465,4.998e-05,111260.0,111250.0,1.48230104]
[1760552281690,4.998e-05,111260.0,111250.0,2.01150772]
[1760552281898,4.998e-05,111260.0,111250.0,1.92564502]
[1760552282304,4.998e-05,111260.0,111250.0,2.03652502]
[1760552282508,4.998e-05,111260.0,111250.0,2.03852502]
[1760552282712,4.998e-05,111260.0,111250.0,1.50931834]
[1760552282941,4.998e-05,111260.0,111250.0,1.62219834]
[1760552283158,4.998e-05,111260.0,111250.0,2.03752502]
[1760552283360,4.998e-05,111260.0,111250.0,1.92664502]
[1760552283782,4.998e-05,111260.0,111250.0,2.03952502]
[1760552283981,4.998e-05,111260.0,111250.0,1.92664502]
[1760552284218,4.998e-05,111260.0,111250.0,2.03952502]
[1760552284836,4.998e-05,111260.0,111250.0,1.92664502]
[1760552285033,4.998e-05,111260.0,111250.0,2.03952502]
[1760552285250,4.998e-05,111260.0,111250.0,1.92664502]
[1760552285657,4.998e-05,111260.0,111250.0,2.03952502]
[1760552285830,4.998e-05,111260.0,111250.0,1.92664502]
[1760552286034,4.998e-05,111260.0,111250.0,2.03952502]
[1760552286601,4.998e-05,111260.0,111250.0,1.51031834]
[1760552286802,4.998e-05,111260.0,111250.0,1.62319834]
[1760552287402,4.998e-05,111260.0,111250.0,1.17068938]
[1760552287647,4.998e-05,111260.0,111250.0,1.05780938]
[1760552288991,4.998e-05,111260.0,111250.0,1.17068938]
[1760552289432,0.1798091,111260.0,111250.0,0.09469012]
[1760552289649,0.25745569,111260.0,111250.0,0.09469012]
[1760552289854,0.59613578,111260.0,111250.0,0.005]
[1760552290279,0.59613578,111260.0,111250.0,0.001]
[1760552290751,0.1798091,111260.0,111250.0,0.002]
[1760552293439,0.65306638,111260.0,111250.0,0.002]
[1760552294202,1.1027565,111260.0,111250.0,1e-08]
[1760552294418,1.21181571,111260.0,111250.0,1e-08]
[1760552294849,1.24799799,111260.0,111250.0,1e-08]
[1760552295726,6.28905608,111260.0,111250.0,1e-08]
[1760552295932,0.17982377,111220.0,111210.0,0.0717521]
[1760552296600,0.17985111,111210.0,111190.0,0.26060964]
[1760552296815,0.17985111,111210.0,111200.0,0.08969012]
[1760552297047,0.17985111,111210.0,111200.0,0.08974006]
[1760552297250,0.17985111,111210.0,111200.0,4.994e-05]
[1760552299146,0.17985111,111210.0,111200.0,0.00204994]
[1760552299773,0.17985111,111210.0,111200.0,0.18190605]
[1760552300220,0.18881495,111220.0,111200.0,0.74485345]
[1760552300393,0.18881235,111230.0,111210.0,0.17983994]
[1760552300702,0.17982377,111220.0,111210.0,0.17983994]
[1760552301129,0.17983994,111210.0,111200.0,0.27159617]
[1760552301335,0.17983994,111210.0,111200.0,0.09074006]
[1760552302269,0.65309722,111210.0,111200.0,0.00104994]
[1760552302497,0.65309722,111210.0,111200.0,0.00204994]
[1760552302670,0.17983994,111210.0,111200.0,0.00204994]
[1760552302877,0.26771152,111210.0,111200.0,0.00104994]
[1760552303238,0.26771152,111210.0,111200.0,0.00204994]
[1760552303655,0.26771152,111210.0,111200.0,0.00104994]
[1760552304112,0.17983994,111210.0,111200.0,0.00104994]
[1760552304313,0.65309722,111210.0,111200.0,0.00104994]
[1760552304533,0.65309722,111210.0,111200.0,4.994e-05]
[1760552305078,0.74278734,111210.0,111200.0,4.994e-05]
[1760552305285,1.10278734,111210.0,111200.0,4.994e-05]
[1760552305487,1.19246942,111210.0,111200.0,4.994e-05]
[1760552306158,1.24792012,111210.0,111200.0,4.994e-05]
[1760552307130,1.26463193,111210.0,111200.0,4.994e-05]
[1760552307733,1.26463062,111210.0,111200.0,4.994e-05]
[1760552308340,1.26563062,111210.0,111200.0,4.994e-05]
[1760552308555,1.28987857,111210.0,111200.0,4.994e-05]
[1760552309397,1.28986737,111210.0,111200.0,4.994e-05]
[1760552310819,1.31691268,111210.0,111200.0,4.994e-05]
[1760552311221,1.3491982,111210.0,111200.0,4.994e-05]
[1760552312573,1.84656544,111210.0,111200.0,4.994e-05]
[1760552313137,6.84656544,111210.0,111200.0,4.994e-05]
[1760552313338,6.81427992,111210.0,111200.0,4.994e-05]
[1760552313986,1.34102264,111210.0,111200.0,4.994e-05]
[1760552314394,1.3410262,111210.0,111200.0,4.994e-05]
[1760552315396,1.60114213,111210.0,111200.0,4.994e-05]
[1760552316178,1.55278422,111210.0,111200.0,4.994e-05]
[1760552316374,1.5335158,111210.0,111200.0,4.994e-05]
[1760552316575,0.86755596,111210.0,111200.0,4.994e-05]
[1760552316787,1.60092917,111210.0,111200.0,4.994e-05]
[1760552317374,1.55277679,111210.0,111200.0,4.994e-05]
[1760552318316,1.71226714,111210.0,111200.0,4.994e-05]
[1760552319333,0.17988846,111180.0,111170.0,0.0717521]
[1760552319544,0.21590078,111180.0,111170.0,0.07190213]
[1760552320018,0.21590078,111180.0,111170.0,0.00015003]
[1760552320224,0.24002366,111180.0,111170.0,0.00015003]
[1760552320420,0.21590078,111180.0,111170.0,0.00015003]
[1760552321374,0.24002366,111180.0,111170.0,0.00015003]
[1760552323346,0.2721875,111180.0,111170.0,0.00015003]
[1760552324285,0.24806462,111180.0,111170.0,0.00015003]
[1760552324487,0.24815675,111180.0,111170.0,0.00015003]
[1760552325304,0.29640251,111180.0,111170.0,0.00015003]
[1760552326207,0.24815675,111180.0,111170.0,0.00015003]
[1760552326643,0.2957857,111180.0,111170.0,0.00015003]
[1760552326848,0.34403146,111180.0,111170.0,0.00015003]
[1760552329434,0.31186762,111180.0,111170.0,0.00015003]
[1760552330117,0.29511629,111180.0,111170.0,0.00015003]
[1760552330681,0.31194259,111180.0,111170.0,0.00015003]
[1760552330904,0.29511629,111180.0,111170.0,0.00015003]
[1760552332277,0.24687053,111180.0,111170.0,0.00015003]